bitfinex/quotes_SOLUSD_20260102
["timestamp","ask_amount","ask_price","bid_price","bid_amount"]
[1767365926530,0.72402766,128.8,128.76,5.82759488]
[1767365927102,7.86157873,128.84,128.78,5.82759488]
[1767365927103,0.72402766,128.83,128.78,5.82759488]
[1767365927308,0.72402766,128.83,128.77,14.18]
[1767365927533,0.72402766,128.83,128.78,5.82759488]
[1767365927929,0.72402766,128.83,128.79,5.82759488]
[1767365928135,0.72402766,128.83,128.77,14.18]
[1767365928626,0.72402766,128.82,128.78,5.82759488]
[1767365928815,0.72402766,128.82,128.77,14.18]
[1767365929016,0.72402766,128.81,128.77,14.18]
[1767365929806,0.72402766,128.81,128.77,20.00759488]
[1767365930808,0.72402766,128.81,128.77,14.18]
[1767365931027,0.1,128.84,128.78,5.82759488]
[1767365931226,0.72402766,128.83,128.79,5.82759488]
[1767365931730,0.72402766,128.83,128.78,5.82759488]
[1767365932032,0.72402766,128.83,128.79,5.82759488]
[1767365932410,0.72402766,128.83,128.78,5.82759488]
[1767365932830,0.72402766,128.83,128.79,5.82759488]
[1767365933234,0.72402766,128.83,128.78,5.82759488]
[1767365934308,0.72402766,128.83,128.79,5.82759488]
[1767365934508,0.72402766,128.83,128.8,5.82759488]
[1767365935033,0.72402766,128.83,128.79,5.82759488]
[1767365935530,0.72402766,128.83,128.77,21.94551951]
[1767365935531,0.72402766,128.83,128.8,5.82759488]
[1767365936042,0.72402766,128.83,128.78,7.76499852]
[1767365936216,0.72402766,128.83,128.79,5.82759488]
[1767365936536,0.1,128.84,128.8,5.82759488]
[1767365936841,0.78546947,128.84,128.78,7.76499852]
[1767365937019,0.1,128.84,128.81,5.82759488]
[1767365937339,0.78546947,128.84,128.81,14.18]
[1767365937524,0.78546947,128.84,128.81,20.00759488]
[1767365937721,0.78546947,128.84,128.81,14.18]
[1767365938321,5.92759488,128.84,128.75,96.71655213]
[1767365938535,0.68546947,128.82,128.78,5.82759488]
[1767365939528,0.68546947,128.82,128.77,21.94573497]
[1767365939731,0.68546947,128.82,128.78,5.82759488]
[1767365939932,0.68546947,128.82,128.77,21.94573497]
[1767365940220,0.68546947,128.82,128.78,5.82759488]
[1767365940420,0.68546947,128.81,128.77,5.82759488]
[1767365940621,0.68546947,128.8,128.77,14.18]
[1767365941541,0.68546947,128.79,128.75,3.38845881]
[1767365941746,0.68546947,128.79,128.75,17.56845881]
[1767365941951,0.68546947,128.79,128.76,3.38845881]
[1767365942127,0.68546947,128.83,128.77,3.38845881]
[1767365942327,0.68546947,128.82,128.78,3.38845881]
[1767365942540,0.68546947,128.82,128.78,9.43740471]
[1767365942746,0.68546947,128.82,128.77,9.43740471]
[1767365943039,10.12287418,128.8,128.77,14.18]
[1767365943243,10.12287418,128.8,128.75,23.61740471]
[1767365943729,0.68546947,128.8,128.75,23.61740471]
[1767365944851,0.68546947,128.83,128.78,9.43740471]
[1767365945146,0.68546947,128.82,128.78,9.43740471]
[1767365945347,0.68546947,128.82,128.77,9.43740471]
[1767365945728,0.68546947,128.82,128.78,23.61740471]
[1767365945927,0.68546947,128.82,128.78,9.43740471]
[1767365946230,0.78546947,128.84,128.79,9.43740471]
[1767365946433,0.78546947,128.84,128.8,9.43740471]
[1767365946637,0.78546947,128.84,128.81,14.18]
[1767365946951,0.78546947,128.84,128.79,23.61740471]
[1767365947451,0.68546947,128.83,128.79,14.18]
[1767365947834,9.43740471,128.82,128.77,9.43740471]
[1767365948150,0.68546947,128.81,128.78,14.18]
[1767365950458,9.43740471,128.81,128.76,9.43740471]
[1767365950630,0.68546947,128.79,128.75,23.61740471]
[1767365951453,9.43740471,128.8,128.75,23.61740471]
[1767365951454,0.1,128.84,128.75,31.3843047]
[1767365951645,0.68546947,128.82,128.75,14.18]
[1767365951952,0.1,128.84,128.79,9.43740471]
[1767365951953,0.78546947,128.84,128.79,9.43740471]
[1767365952251,0.78546947,128.84,128.8,9.43740471]
[1767365952457,0.78546947,128.84,128.8,23.61740471]
[1767365953338,0.78546947,128.84,128.8,9.43740471]
[1767365953647,0.1,128.84,128.8,14.18]
[1767365953852,0.78546947,128.84,128.8,23.61740471]
[1767365954148,0.68546947,128.83,128.8,14.18]
[1767365954335,0.68546947,128.82,128.78,14.18]
[1767365954534,0.68546947,128.82,128.78,23.61740471]
[1767365954852,0.68546947,128.82,128.78,14.18]
[1767365955053,0.68546947,128.82,128.78,23.61740471]
[1767365955349,0.78546947,128.84,128.79,9.43740471]
[1767365956140,0.78546947,128.84,128.79,7.76453516]
[1767365956455,0.78546947,128.84,128.79,9.43740471]
[1767365956655,0.78546947,128.84,128.78,21.94497102]
[1767365956835,0.78546947,128.84,128.79,9.43740471]
[1767365957458,10.12287418,128.83,128.78,14.18]
[1767365958058,0.68546947,128.83,128.78,23.61740471]
[1767365958456,0.68546947,128.82,128.78,14.18]
[1767365958758,0.68546947,128.79,128.75,14.18]
[1767365958940,10.12287418,128.79,128.75,14.18]
[1767365959135,9.43740471,128.81,128.75,0.65321935]
[1767365959457,10.12287418,128.8,128.75,14.83321935]
[1767365960559,0.68546947,128.8,128.75,14.83321935]
[1767365961061,9.43740471,128.8,128.75,14.18]
[1767365961259,9.43740471,128.79,128.74,14.18]
[1767365961556,0.68546947,128.78,128.74,14.18]
[1767365962350,10.12287418,128.78,128.74,14.18]
[1767365962746,0.68546947,128.78,128.74,14.18]
[1767365964263,9.43740471,128.78,128.74,14.18]
[1767365964440,0.68546947,128.77,128.74,14.18]
[1767365964852,10.12287418,128.77,128.74,14.18]
[1767365967639,9.43740471,128.75,128.74,14.18]
[1767365967843,10.15526786,128.75,128.7,15.0]
[1767365968141,9.43740471,128.74,128.71,14.18]
[1767365968341,10.15526786,128.75,128.71,14.18]
[1767365968556,10.15526786,128.75,128.71,22.64184604]
[1767365969873,9.43740471,128.74,128.71,14.18]
[1767365970170,10.15526786,128.75,128.71,14.18]
[1767365970362,10.12526786,128.75,128.71,14.18]
[1767365970971,0.68786315,128.75,128.71,14.18]
[1767365971177,10.12526786,128.75,128.71,14.18]
[1767365971469,10.09526786,128.75,128.71,14.18]
[1767365971656,10.09526786,128.75,128.71,14.87246228]
[1767365972194,0.65786315,128.75,128.71,22.64175472]
[1767365972356,9.43740471,128.76,128.72,0.69246228]
[1767365973077,9.43740471,128.75,128.71,14.18]
[1767365973255,9.43740471,128.74,128.71,14.18]
[1767365973577,9.43740471,128.73,128.69,71.34260065]
[1767365973759,9.43740471,128.72,128.68,84.25091773]
[1767365973965,1.66270472,128.72,128.69,0.69246228]
[1767365974162,9.43740471,128.72,128.68,84.94332222]
[1767365974374,10.15526786,128.72,128.68,84.94332222]
[1767365975081,10.15526786,128.72,128.68,22.64332222]
[1767365976681,0.71786315,128.72,128.68,14.18]
[1767365976880,9.43740471,128.71,128.68,14.18]
[1767365977766,9.43740471,128.71,128.67,9.04260065]
[1767365978284,9.43740471,128.71,128.67,16.81437807]
[1767365978478,0.71786315,128.72,128.67,16.81437807]
[1767365978479,0.71786315,128.72,128.68,7.77116975]
[1767365978782,10.15526786,128.72,128.68,8.46363203]
[1767365979162,2.37871117,128.69,128.66,76.48]
[1767365979362,9.43740471,128.7,128.67,0.69246228]
[1767365980282,9.43740471,128.71,128.67,0.69246228]
[1767365981282,10.15526786,128.71,128.67,0.69246228]
[1767365981502,9.43740471,128.7,128.66,22.64479596]
[1767365981869,9.43740471,128.69,128.66,14.87246228]
[1767365982265,0.71786315,128.7,128.67,0.69246228]
[1767365982575,9.43740471,128.71,128.67,0.69246228]
[1767365982976,10.15526786,128.71,128.67,0.69246228]
[1767365983396,9.43740471,128.7,128.67,0.69246228]
[1767365983768,10.15526786,128.71,128.67,0.69246228]
[1767365984483,3.3943654,128.7,128.67,0.69246228]
[1767365984687,4.11222855,128.71,128.67,0.69246228]
[1767365985768,3.3943654,128.72,128.67,0.69246228]
[1767365985967,4.11222855,128.72,128.67,0.69246228]
[1767365986167,4.11222855,128.71,128.67,0.69246228]
[1767365986368,4.11222855,128.7,128.66,14.18]
[1767365986690,4.11222855,128.7,128.66,14.87246228]
[1767365986992,4.11222855,128.7,128.67,0.69246228]
[1767365986993,0.71786315,128.7,128.67,0.69246228]
[1767365989087,0.71786315,128.69,128.66,14.87246228]
[1767365989285,4.11222855,128.71,128.67,0.69246228]
[1767365989588,4.11222855,128.73,128.67,3.3943654]
[1767365989798,19.41391288,128.78,128.69,0.69246228]
[1767365989799,3.3943654,128.74,128.69,0.69246228]
[1767365989988,0.71786315,128.75,128.71,0.69246228]
[1767365990181,4.11222855,128.75,128.71,0.69246228]
[1767365990487,0.71786315,128.74,128.7,0.69246228]
[1767365991169,0.71786315,128.74,128.69,14.87246228]
[1767365991170,0.71786315,128.73,128.69,14.87246228]
[1767365991369,4.11222855,128.72,128.67,22.64399519]
[1767365991576,4.11222855,128.72,128.68,0.69246228]
[1767365992499,0.71786315,128.72,128.68,0.69246228]
[1767365992703,3.3943654,128.76,128.68,0.69246228]
[1767365993002,4.11222855,128.73,128.69,0.69246228]
[1767365993495,0.71786315,128.72,128.69,0.69246228]
[1767365993707,4.11222855,128.72,128.69,0.69246228]
[1767365993885,3.3943654,128.72,128.67,22.6440092]
[1767365994081,0.71786315,128.71,128.67,22.6440092]
[1767365994408,0.71786315,128.71,128.67,21.95154692]
[1767365994584,0.71786315,128.71,128.68,0.69246228]
[1767365996401,3.3943654,128.76,128.69,0.70436475]
[1767365996402,3.3943654,128.73,128.69,0.70436475]
[1767365996581,4.08007382,128.74,128.7,0.70436475]
[1767365996981,0.68570842,128.74,128.7,0.70436475]
[1767365998804,4.08007382,128.72,128.68,0.70436475]
[1767365999002,0.68570842,128.72,128.68,0.70436475]
[1767366000389,3.3943654,128.75,128.7,4.09873015]
[1767366000691,0.68570842,128.81,128.71,4.09873015]
[1767366000894,0.68570842,128.77,128.73,3.3943654]
[1767366001101,3.3943654,128.79,128.73,0.70436475]
[1767366001287,0.68570842,128.77,128.72,14.18]
[1767366001599,0.68570842,128.76,128.72,14.88436475]
[1767366001802,0.68570842,128.76,128.72,0.70436475]
[1767366001982,0.68570842,128.77,128.73,0.70436475]
[1767366002383,0.68570842,128.77,128.73,4.09873015]
[1767366002581,0.68570842,128.79,128.74,2.87413555]
[1767366002803,0.68570842,128.79,128.75,2.87413555]
[1767366003380,0.68570842,128.79,128.75,0.70436475]
[1767366004006,0.68570842,128.83,128.77,0.70436475]
[1767366004180,0.68570842,128.83,128.79,2.1697708]
[1767366004385,0.68570842,128.83,128.79,2.87413555]
[1767366004600,0.68570842,128.83,128.8,2.1697708]
[1767366004902,0.78570842,128.84,128.79,2.1697708]
[1767366005207,0.78570842,128.84,128.79,0.70436475]
[1767366005392,2.1697708,128.83,128.78,2.87413555]
[1767366005595,0.68570842,128.82,128.78,2.87413555]
[1767366006407,0.68570842,128.82,128.79,2.1697708]
[1767366006611,0.78570842,128.84,128.8,2.1697708]
[1767366007108,0.78570842,128.84,128.81,2.1697708]
[1767366007311,0.78570842,128.84,128.82,2.1697708]
[1767366007699,0.78570842,128.84,128.8,16.3497708]
[1767366007906,0.78570842,128.84,128.81,2.1697708]
[1767366008107,0.1,128.84,128.83,2.1697708]
[1767366008817,0.1,128.85,128.83,2.87413555]
[1767366009011,0.1,128.85,128.84,2.1697708]
[1767366009217,0.1,128.88,128.84,2.1697708]
[1767366009387,0.1,128.88,128.86,2.1697708]
[1767366009589,0.1,128.88,128.84,2.1697708]
[1767366009590,0.78570842,128.88,128.84,2.1697708]
[1767366009786,0.78570842,128.88,128.85,2.1697708]
[1767366009997,0.78570842,128.88,128.86,2.1697708]
[1767366010235,0.78570842,128.88,128.84,0.70436475]
[1767366010516,0.1,128.88,128.87,2.1697708]
[1767366010810,0.68570842,128.9,128.87,2.1697708]
[1767366011001,0.1,128.91,128.89,2.1697708]
[1767366011403,0.78570842,128.91,128.86,0.70436475]
[1767366011904,0.78570842,128.91,128.86,2.87413555]
[1767366012104,0.78570842,128.91,128.87,2.1697708]
[1767366012494,0.1,128.91,128.84,14.88436475]
[1767366012701,0.68570842,128.89,128.85,2.1697708]
[1767366013117,0.1,128.91,128.88,2.1697708]
[1767366013302,0.1,128.91,128.89,2.1697708]
[1767366013614,0.78570842,128.91,128.86,0.70436475]
[1767366013812,0.78570842,128.91,128.86,2.87413555]
[1767366014004,0.68570842,128.9,128.86,2.87413555]
[1767366014203,0.1,128.91,128.88,2.1697708]
[1767366014601,0.1,128.91,128.89,2.1697708]
[1767366014809,0.1,128.91,128.9,2.1697708]
[1767366015013,0.68570842,128.95,128.89,0.70436475]
[1767366015319,0.68570842,128.93,128.89,0.70436475]
[1767366015618,0.68570842,128.92,128.88,2.87413555]
[1767366015914,7.85436537,128.96,128.88,2.87413555]
[1767366016121,0.68570842,128.94,128.89,0.70436475]
[1767366016418,2.85547922,128.94,128.89,2.87413555]
[1767366016621,0.68570842,128.94,128.89,6.50176229]
[1767366017733,0.68570842,128.93,128.89,0.70436475]
[1767366017916,0.68570842,128.91,128.87,0.70436475]
[1767366018104,0.68570842,128.91,128.87,6.50176229]
[1767366018430,0.68570842,128.92,128.87,6.50176229]
[1767366018603,0.68570842,128.92,128.88,0.70436475]
[1767366018918,0.68570842,128.91,128.86,29.01190066]
[1767366019120,0.68570842,128.91,128.87,0.70436475]
[1767366019423,0.68570842,128.95,128.9,0.70436475]
[1767366019731,0.68570842,128.94,128.89,6.50176229]
[1767366019902,0.68570842,128.94,128.9,0.70436475]
[1767366020223,0.68570842,128.94,128.9,6.50176229]
[1767366020401,0.68570842,128.94,128.9,0.70436475]
[1767366020593,0.78570842,128.96,128.92,0.70436475]
[1767366020798,0.68570842,128.95,128.89,0.70436475]
[1767366021407,6.48310596,128.94,128.89,0.70436475]
[1767366022621,0.68570842,128.94,128.89,0.70436475]
[1767366022818,0.1,128.96,128.91,6.50176229]
[1767366022819,0.78570842,128.96,128.91,6.50176229]
[1767366023823,0.68570842,128.95,128.91,0.70436475]
[1767366024032,0.68570842,128.93,128.88,19.95739754]
[1767366024329,0.1,128.96,128.88,14.16]
[1767366024330,6.48310596,128.92,128.88,14.16]
[1767366024499,0.68570842,128.92,128.88,14.86436475]
[1767366024704,6.48310596,128.94,128.89,0.70436475]
[1767366024902,0.68570842,128.93,128.89,0.70436475]
[1767366025116,0.68570842,128.93,128.87,7.75968554]
[1767366025117,0.68570842,128.95,128.87,0.70436475]
[1767366025403,0.68570842,128.94,128.9,0.70436475]
[1767366025598,6.58310596,128.96,128.91,0.70436475]
[1767366025815,6.51795672,128.95,128.91,0.70436475]
[1767366026125,0.69327561,128.94,128.89,0.70027672]
[1767366026323,6.49067315,128.93,128.89,0.70027672]
[1767366026832,0.1,128.96,128.89,0.70027672]
[1767366027130,0.1,128.96,128.94,6.49767426]
[1767366027431,0.79327561,128.98,128.95,6.49767426]
[1767366027432,0.1,128.98,128.95,6.49767426]
[1767366027817,0.79327561,128.98,128.92,0.70027672]
[1767366028021,0.69327561,128.97,128.92,14.86027672]
[1767366028329,0.69327561,128.97,128.93,0.70027672]
[1767366029043,0.69327561,128.97,128.92,14.16]
[1767366029328,5.79739754,128.94,128.9,0.70027672]
[1767366029526,0.69327561,128.94,128.9,0.70027672]
[1767366029912,0.69327561,128.94,128.9,8.45818709]
[1767366030105,0.69327561,128.96,128.91,6.49767426]
[1767366030333,6.49067315,128.96,128.91,0.70027672]
[1767366030633,6.49067315,128.94,128.9,0.70027672]
[1767366031008,0.1,128.98,128.9,0.70027672]
[1767366031213,5.79739754,128.96,128.91,0.70027672]
[1767366031414,0.69327561,128.94,128.89,19.95739754]
[1767366031615,5.79739754,128.95,128.9,0.70027672]
[1767366031821,0.69327561,128.95,128.9,6.49767426]
[1767366032541,6.49067315,128.95,128.9,0.70027672]
[1767366032825,0.1,128.98,128.93,0.70027672]
[1767366033006,0.1,128.98,128.91,29.16]
[1767366033007,0.1,128.98,128.95,0.70027672]
[1767366033207,0.1,128.98,128.95,14.86027672]
[1767366033814,0.1,128.98,128.95,20.65767426]
[1767366034025,0.1,128.98,128.95,14.86027672]
[1767366034329,0.1,128.98,128.95,0.70027672]
[1767366034704,0.1,128.98,128.96,0.70027672]
[1767366034905,0.1,129.01,128.98,0.70027672]
[1767366035109,0.1,129.01,128.96,0.70027672]
[1767366035343,6.49067315,129.05,129.0,0.70027672]
[1767366035834,21.20672432,129.07,128.97,15.0]
[1767366035835,6.49067315,129.04,128.98,5.79739754]
[1767366036007,6.59067315,129.02,128.98,8.35013837]
[1767366036207,0.79327561,129.02,128.97,0.70027672]
[1767366036407,0.79327561,129.02,128.98,0.70027672]
[1767366036624,0.79327561,129.02,128.96,14.16]
[1767366036625,5.79739754,129.01,128.96,14.16]
[1767366036828,6.49067315,129.0,128.95,23.21041509]
[1767366037230,0.69327561,129.0,128.95,36.76258353]
[1767366037729,0.69327561,129.0,128.95,31.80518599]
[1767366037933,0.69327561,129.0,128.96,14.16]
[1767366038129,5.79739754,129.01,128.96,14.16]
[1767366038431,0.69327561,129.0,128.96,14.16]
[1767366038629,0.1,129.02,128.96,14.86027672]
[1767366038630,0.79327561,129.02,128.96,14.86027672]
[1767366038836,6.49067315,129.01,128.96,14.86027672]
[1767366039016,5.79739754,129.0,128.96,14.16]
[1767366039333,6.49067315,129.0,128.96,14.16]
[1767366039537,6.49067315,128.99,128.93,8.35013837]
[1767366039835,0.69327561,128.97,128.93,9.05041509]
[1767366040349,7.85077579,129.02,128.93,5.79739754]
[1767366040513,5.79739754,128.99,128.93,0.70027672]
[1767366040824,5.79739754,128.97,128.93,0.70027672]
[1767366041020,5.79739754,128.95,128.92,14.16]
[1767366041422,5.79739754,128.96,128.92,14.16]
[1767366041814,27.22761658,129.02,128.92,14.16]
[1767366042017,5.79739754,128.96,128.92,14.16]
[1767366042324,6.49067315,128.96,128.92,14.16]
[1767366042916,0.69327561,128.96,128.92,14.16]
[1767366043236,6.49067315,128.96,128.92,14.16]
[1767366043432,0.69327561,128.95,128.92,14.16]
[1767366043627,5.79739754,128.96,128.92,14.16]
[1767366043935,6.49067315,128.98,128.93,0.70027672]
[1767366044233,5.79739754,128.99,128.94,0.70027672]
[1767366044537,0.69327561,128.99,128.94,0.70027672]
[1767366044748,0.69327561,129.01,128.95,20.65767426]
[1767366045031,5.73045456,129.0,128.95,27.71221759]
[1767366045217,6.49067315,129.01,128.96,14.86027672]
[1767366045417,5.72972542,129.0,128.96,14.86027672]
[1767366045632,6.49067315,129.01,128.97,0.70027672]
[1767366045936,12.22047421,129.0,128.96,14.16]
[1767366046133,6.49067315,128.99,128.93,22.75588793]
[1767366046337,0.69327561,129.0,128.94,14.86027672]
[1767366046544,11.5323681,128.99,128.94,14.86027672]
[1767366046725,6.49067315,128.99,128.94,28.41321278]
[1767366046926,6.49067315,128.99,128.94,22.61581524]
[1767366047131,6.49067315,128.99,128.94,14.86027672]
[1767366047433,0.69327561,128.99,128.94,28.41316119]
[1767366048443,6.49067315,129.0,128.95,0.70027672]
[1767366048639,5.74559764,128.99,128.95,0.70027672]
[1767366048811,0.69327561,129.0,128.95,6.49767426]
[1767366049017,0.69327561,129.01,128.93,15.70027672]
[1767366049231,6.49067315,128.98,128.94,14.16]
[1767366049431,0.69327561,128.98,128.94,14.16]
[1767366049720,0.69327561,129.01,128.94,14.16]
[1767366050031,6.49067315,128.96,128.94,14.16]
[1767366050228,6.46067315,128.96,128.94,14.16]
[1767366050426,0.66327561,128.96,128.94,14.16]
[1767366050915,6.46067315,128.96,128.94,14.16]
[1767366051117,5.79739754,128.96,128.94,14.16]
[1767366051636,5.79739754,128.96,128.92,30.96711909]
[1767366051838,5.79739754,128.96,128.92,14.86027672]
[1767366052018,173.15085645,129.02,128.92,14.86027672]
[1767366052344,6.49067315,128.97,128.92,28.41438509]
[1767366052528,6.46067315,128.97,128.93,5.79739754]
[1767366052727,6.46067315,128.97,128.92,20.65767426]
[1767366052928,5.79739754,128.97,128.92,20.65767426]
[1767366053129,11.56059541,128.96,128.92,20.65767426]
[1767366053343,5.79739754,128.96,128.92,20.65767426]
[1767366054844,6.49067315,128.96,128.92,20.65767426]
[1767366055144,0.69327561,128.96,128.92,28.41441921]
[1767366055957,6.49067315,128.99,128.95,0.70027672]
[1767366056126,5.77405725,128.98,128.92,41.30861587]
[1767366056321,12.2280596,128.97,128.92,14.27896636]
[1767366056522,5.79739754,128.97,128.92,20.68222141]
[1767366056726,6.45255394,128.96,128.92,20.68222141]
[1767366056928,0.6551564,128.96,128.92,20.68222141]
[1767366057436,6.45255394,128.96,128.92,14.88482387]
[1767366057634,6.45255394,128.96,128.92,20.68222141]
[1767366058147,0.6551564,129.01,128.94,6.52222141]
[1767366058443,0.6551564,128.98,128.94,6.52222141]
[1767366058641,0.6551564,128.98,128.94,0.72482387]
[1767366058848,0.6551564,128.98,128.95,5.79739754]
[1767366059221,0.6551564,128.99,128.95,5.79739754]
[1767366060444,6.45255394,128.99,128.95,5.79739754]
[1767366060649,0.6551564,128.98,128.93,8.48069172]
[1767366060823,6.45255394,128.98,128.94,5.79739754]
[1767366061024,0.6551564,128.98,128.94,5.79739754]
[1767366061240,19.47731932,129.02,128.9,0.72482387]
[1767366061540,0.6551564,128.95,128.91,19.95739754]
[1767366062047,0.6551564,128.95,128.91,20.68222141]
[1767366062273,0.6551564,129.0,128.95,0.72482387]
[1767366062546,0.6551564,128.99,128.95,6.52222141]
[1767366062942,0.6551564,128.99,128.96,5.79739754]
[1767366063349,0.6551564,128.99,128.95,0.72482387]
[1767366063537,0.6551564,128.99,128.96,5.79739754]
[1767366063723,0.6551564,128.98,128.94,5.79739754]
[1767366063927,0.6551564,128.97,128.93,20.68222141]
[1767366064637,9.41578076,128.98,128.94,9.41578076]
[1767366064845,10.07093716,128.99,128.94,10.14060463]
[1767366065045,0.6551564,128.98,128.94,0.72482387]
[1767366065450,0.6551564,128.98,128.94,9.41578076]
[1767366065749,0.6551564,128.96,128.93,23.57578076]
[1767366066141,0.6551564,128.96,128.93,14.16]
[1767366067253,9.41578076,128.96,128.93,14.16]
[1767366067438,19.47730169,129.02,128.93,14.16]
[1767366067439,10.07093716,128.95,128.93,14.16]
[1767366067626,0.6551564,128.98,128.93,14.16]
[1767366067833,0.6551564,128.96,128.93,14.16]
[1767366068055,10.07093716,128.95,128.93,14.16]
[1767366068360,0.6551564,128.95,128.91,17.89791486]
[1767366068531,0.6551564,128.96,128.92,9.41578076]
[1767366069053,173.05150191,129.01,128.93,9.41578076]
[1767366069252,5.79250553,129.0,128.94,9.41578076]
[1767366069432,0.6551564,128.98,128.94,0.72482387]
[1767366069632,0.6551564,128.97,128.93,9.41578076]
[1767366069833,10.07093716,128.97,128.92,10.14060463]
[1767366070133,0.6551564,128.96,128.92,10.14060463]
[1767366070332,0.6551564,128.96,128.92,0.72482387]
[1767366070546,10.07093716,128.96,128.92,0.72482387]
[1767366070742,0.6551564,128.96,128.92,10.14060463]
[1767366070952,9.41578076,128.97,128.93,0.72482387]
[1767366071151,9.41578076,128.97,128.93,10.14060463]
[1767366071451,0.6551564,129.0,128.95,0.72482387]
[1767366071636,9.41578076,128.98,128.94,9.41578076]
[1767366071839,0.6551564,128.99,128.94,10.14060463]
[1767366072045,0.6551564,128.98,128.94,10.14060463]
[1767366072258,10.07093716,128.98,128.94,0.72482387]
[1767366072743,10.07093716,128.98,128.94,10.14060463]
[1767366072944,0.6551564,128.98,128.94,10.14060463]
[1767366073459,10.07093716,128.99,128.94,10.14060463]
[1767366073662,10.07093716,128.98,128.94,0.72482387]
[1767366073861,9.41578076,128.97,128.94,0.72482387]
[1767366074155,0.6551564,128.96,128.91,8.48195485]
[1767366074349,10.07093716,128.96,128.91,0.72482387]
[1767366074658,0.6551564,128.96,128.92,10.14060463]
[1767366075661,0.6551564,128.96,128.92,0.72482387]
[1767366075852,10.07093716,128.96,128.92,10.14060463]
[1767366076159,0.6551564,128.96,128.92,10.14060463]
[1767366076459,198.91684079,129.02,128.94,10.14060463]
[1767366076460,0.6551564,128.98,128.94,10.14060463]
[1767366076656,10.07093716,129.0,128.96,9.41578076]
[1767366076961,0.6551564,128.99,128.96,9.41578076]
[1767366077280,9.41578076,128.99,128.95,14.16]
[1767366077560,0.6551564,128.98,128.95,9.41578076]
[1767366077746,0.6551564,128.98,128.94,24.30060463]
[1767366078148,9.41578076,128.99,128.94,24.30060463]
[1767366078337,0.1,129.02,128.95,0.72482387]
[1767366078542,10.17093716,129.02,128.98,9.41578076]
[1767366078864,0.1,129.02,129.0,9.41578076]
[1767366079353,0.6551564,129.05,129.01,10.14060463]
[1767366079558,0.6551564,129.06,129.02,9.41578076]
[1767366080648,0.6551564,129.06,129.01,0.72482387]
[1767366080844,10.07093716,129.06,129.01,10.14060463]
[1767366081159,0.6551564,129.05,129.02,9.41578076]
[1767366081358,0.6551564,129.05,129.01,0.72482387]
[1767366081563,0.6551564,129.05,129.01,10.14060463]
[1767366082444,10.07093716,129.05,129.01,0.72482387]
[1767366082646,10.07093716,129.05,129.01,10.14060463]
[1767366082843,21.20672432,129.07,129.04,10.14060463]
[1767366083154,21.20672432,129.07,129.06,9.41578076]
[1767366083155,20.11386117,129.07,129.06,9.41578076]
[1767366083362,20.11386117,129.07,129.05,14.88482387]
[1767366083670,20.11386117,129.07,129.05,23.57578076]
[1767366084166,20.11386117,129.07,129.05,9.41578076]
[1767366084667,20.11386117,129.07,129.04,9.41578076]
[1767366084859,20.11386117,129.07,129.05,9.41578076]
[1767366085269,20.11386117,129.07,129.03,14.16]
[1767366085448,20.11386117,129.07,129.03,23.57578076]
[1767366085868,20.11386117,129.07,129.03,21.91012819]
[1767366086045,20.11386117,129.07,129.05,9.41578076]
[1767366086564,20.11386117,129.07,129.06,9.41578076]
[1767366086769,20.11386117,129.07,129.03,21.90989886]
[1767366086970,20.11386117,129.07,129.06,9.41578076]
[1767366087673,20.8164575,129.07,129.04,9.41578076]
[1767366087845,20.11386117,129.07,129.06,9.41578076]
[1767366088041,20.11386117,129.07,129.04,7.74915162]
[1767366088266,0.1,129.08,129.06,9.41578076]
[1767366088460,0.1,129.11,129.07,23.55578076]
[1767366088669,0.1,129.11,129.1,9.41578076]
[1767366089351,0.1,129.11,129.07,14.14]
[1767366089577,0.70259633,129.14,129.1,9.41578076]
[1767366089784,62.73651338,129.21,129.06,22.74792194]
[1767366089785,14.12,129.18,129.06,22.74792194]
[1767366089962,0.70259633,129.13,129.09,9.41578076]
[1767366090161,0.70259633,129.12,129.07,14.14]
[1767366090366,0.70259633,129.12,129.08,9.41578076]
[1767366090554,9.41578076,129.14,129.07,22.49013837]
[1767366090767,9.41578076,129.13,129.08,14.14]
[1767366091076,9.41578076,129.15,129.06,23.55578076]
[1767366091286,27.09321978,129.19,129.08,9.41578076]
[1767366091470,9.41578076,129.14,129.07,0.67946353]
[1767366091657,9.41578076,129.13,129.08,9.41578076]
[1767366091856,9.41578076,129.12,129.06,14.81946353]
[1767366092057,17.15907475,129.15,129.06,14.81946353]
[1767366092299,17.15907475,129.15,129.07,9.41578076]
[1767366092581,10.11837709,129.1,129.06,9.41578076]
[1767366092756,0.70259633,129.09,129.04,30.91902502]
[1767366092962,10.11837709,129.09,129.04,14.81946353]
[1767366093276,10.11837709,129.09,129.04,0.67946353]
[1767366093456,10.11837709,129.09,129.05,9.41578076]
[1767366094075,10.11837709,129.07,129.03,14.14]